fUSD/lending_fUSD_20250128
["ID","MTS","AMOUNT","RATE_DAILY","PERIOD"]
[350724836,1738087841751,-228.981588,0.00019114,2]
[350724837,1738087841761,-228.981588,0.00019114,2]
[350724838,1738087841772,-228.981588,0.00019114,2]
[350724839,1738087841782,-410.154786,0.00019114,2]
[350724840,1738087842045,-410.154786,0.00019114,2]
[350724841,1738087842056,-410.154786,0.00019114,2]
[350724842,1738087842066,-410.154786,0.00019114,2]
[350724843,1738087842077,-8801355.32137071,0.00019114,15]
[350724844,1738087842091,-9392.03320919,0.00019114,15]
[350724845,1738087842115,-585.32634896,0.00019114,15]
[350724849,1738087843366,-1770.88526334,0.00019014,2]
[350724850,1738087843376,-3879.98210466,0.00019114,15]
[350724851,1738087843473,-1938.6818734,0.00019114,15]
[350724852,1738087985979,200.0,0.00011894,2]
[350724854,1738088275301,205.34,0.00010137,2]
[350724855,1738088708071,275563.82289379,0.00012,2]
[350724856,1738088708107,336202.36174952,0.00012,2]
[350724857,1738088708138,192410.10530887,0.00012,2]
[350724858,1738088708166,1000000.0,0.00012,2]
[350724859,1738088708191,1000000.0,0.00012,2]
[350724860,1738088708220,62000.0,0.00012,2]
[350724861,1738088708244,1000000.0,0.00012,2]
[350724862,1738088708281,2346.22263277,0.00012,2]
[350724866,1738088960087,-302.44,0.00016123,2]
[350724867,1738088960110,-115.17185015,0.00016813,2]
[350724880,1738089040664,-90.16814985,0.00016813,2]
[350724881,1738089040675,-500.0,0.00017384,2]
[350724882,1738089040685,-500.0,0.00017384,2]
[350724883,1738089040696,-500.0,0.00017589,2]
[350724884,1738089040705,-175.03,0.00018016,2]
[350724885,1738089040715,-335.33,0.00018034,3]
[350724886,1738089040725,-174.84,0.00018109,2]
[350724887,1738089040734,-614.33005227,0.00018116,2]
[350724892,1738089043370,-318.82,0.00018116,2]
[350724893,1738089043425,-66.84994773,0.00018116,2]
[350724894,1738089043436,-216.84,0.00018294,30]
[350724895,1738089043446,-302.44,0.00018387,2]
[350724896,1738089043456,-500.0,0.0001848,2]
[350724897,1738089043466,-30867.0,0.000185,2]
[350724898,1738089043476,-166.66,0.00018691,2]
[350724899,1738089043486,-165.6959929,0.00018731,2]
[350724900,1738089043496,-3000.0,0.0001892,2]
[350724901,1738089043505,-150.0,0.00018959,2]
[350724902,1738089043516,-150.0,0.00018959,2]
[350724903,1738089043525,-875.58,0.00018959,2]
[350724904,1738089043535,-150.0,0.00018959,2]
[350724905,1738089043545,-500.0,0.00018961,2]
[350724906,1738089043554,-7094.04167592,0.00019,2]
[350724907,1738089043565,-156.79496558,0.00019014,2]
[350724908,1738089043575,-997.83292175,0.00019014,2]
[350724909,1738089043585,-188.90536348,0.00019014,2]
[350724910,1738089043595,-515.1664,0.00019014,2]
[350724911,1738089043604,-997.83292175,0.00019017,2]
[350724912,1738089043614,-200.11463938,0.00019018,2]
[350724913,1738089043633,-1000.0,0.00019018,2]
[350724914,1738089043647,-631.0013,0.00019018,2]
[350724915,1738089043657,-997.83292175,0.00019021,2]
[350724916,1738089043667,-997.83292175,0.00019024,2]
[350724917,1738089043678,-997.83292175,0.00019027,2]
[350724918,1738089043688,-997.83292175,0.00019031,2]
[350724919,1738089043698,-997.83292175,0.00019034,2]
[350724920,1738089043708,-997.83292175,0.00019038,2]
[350724921,1738089043718,-997.83292175,0.00019041,2]
[350724922,1738089043728,-997.83292175,0.00019044,2]
[350724923,1738089043738,-997.83292175,0.00019048,2]
[350724924,1738089043749,-997.83292175,0.00019051,2]
[350724925,1738089043759,-997.83292175,0.00019054,2]
[350724926,1738089043770,-997.83292175,0.00019058,2]
[350724927,1738089043781,-997.83292175,0.00019061,2]
[350724928,1738089043791,-177.3783692,0.00019078,2]
[350724929,1738089043801,-443.51216319,0.00019078,2]
[350724930,1738089043812,-1386.67719557,0.00019078,2]
[350724931,1738089043822,-164.05461719,0.00019078,2]
[350724932,1738089043833,-188.90536348,0.00019078,2]
[350724933,1738089043843,-150.0,0.00019096,2]
[350724934,1738089043855,-150.0,0.00019096,2]
[350724935,1738089043867,-150.0,0.00019096,2]
[350724936,1738089043878,-150.0,0.00019096,2]
[350724937,1738089043888,-1690.09419865,0.000191,2]
[350724938,1738089043899,-374.623,0.000191,2]
[350724939,1738089043909,-12623.2588527,0.00019109,2]
[350724940,1738089043919,-2165.5988993,0.00019109,2]
[350724941,1738089043929,-193832.42669548,0.00019111,2]
[350724942,1738089043943,-133305.87890863,0.00019111,2]
[350724943,1738089043954,-556.61,0.00019113,2]
[350724944,1738089043964,-300.0,0.00019113,2]
[350724945,1738089043975,-300.0,0.00019113,2]
[350724946,1738089043985,-300.0,0.00019113,2]
[350724947,1738089043995,-300.0,0.00019113,2]
[350724948,1738089044005,-300.0,0.00019113,2]
[350724949,1738089044015,-300.0,0.00019113,2]
[350724950,1738089044025,-300.0,0.00019113,2]
[350724951,1738089044036,-300.0,0.00019113,2]
[350724952,1738089044047,-300.0,0.00019113,2]
[350724953,1738089044057,-300.0,0.00019113,2]
[350724954,1738089044067,-300.0,0.00019113,2]
[350724955,1738089044077,-300.0,0.00019113,2]
[350724956,1738089044087,-300.0,0.00019113,2]
[350724957,1738089044098,-300.0,0.00019113,2]
[350724958,1738089044107,-2000.0,0.00019114,2]
[350724959,1738089044117,-200.0,0.00019114,2]
[350724960,1738089044128,-930547.65214875,0.00019114,15]
[350724966,1738089046554,-173.58855604,0.00019013,2]
[350724967,1738089046564,-10157.82241083,0.00019114,15]
[350725215,1738089049858,-395936.08272576,0.00019114,15]
[350725216,1738089050461,-268.39827343,0.00019065,2]
[350725230,1738090231748,-272.19,0.00016145,2]
[350725231,1738090231760,-500.0,0.00017384,2]
[350725232,1738090231770,-1615.0,0.000175,2]
[350725233,1738090231781,-1000.0,0.00018049,2]
[350725234,1738090231791,-175.03,0.00018054,2]
[350725235,1738090231802,-174.84,0.00018103,2]
[350725236,1738090231812,-205.99,0.00018289,30]
[350725237,1738090231822,-300.0,0.000183,6]
[350725238,1738090231832,-1427.0,0.000184,2]
[350725239,1738090231844,-600.0,0.000184,6]
[350725240,1738090231854,-272.19,0.00018409,2]
[350725241,1738090231864,-150.0,0.00018466,2]
[350725242,1738090231874,-500.0,0.0001848,2]
[350725243,1738090231884,-900.0,0.000185,6]
[350725244,1738090231895,-1300.0,0.000186,6]
[350725245,1738090231906,-1600.0,0.000187,6]
[350725246,1738090231916,-300.0,0.000188,6]
[350725247,1738090231926,-300.0,0.000189,6]
[350725248,1738090231936,-500.0,0.00018961,2]
[350725249,1738090231946,-1000.0,0.00019,2]
[350725250,1738090231957,-1004.0,0.00019,2]
[350725251,1738090231967,-1000.0,0.00019,3]
[350725252,1738090231977,-1000.0,0.00019,3]
[350725253,1738090231986,-1000.0,0.00019,2]
[350725254,1738090231997,-1000.0,0.00019,2]
[350725255,1738090232007,-833.0,0.00019,3]
[350725256,1738090232017,-1000.0,0.00019,3]
[350725257,1738090232028,-1000.0,0.00019,2]
[350725258,1738090232038,-1000.0,0.00019,2]
[350725259,1738090232048,-156.79496554,0.00019014,2]
[350725260,1738090232059,-165.17946093,0.00019014,2]
[350725261,1738090232069,-165.17946093,0.00019035,2]
[350725262,1738090232079,-236.03831676,0.00019051,2]
[350725263,1738090232088,-236.03831676,0.00019054,2]
[350725264,1738090232098,-165.17946093,0.00019057,2]
[350725265,1738090232107,-236.03831676,0.00019058,2]
[350725266,1738090232118,-236.03831676,0.00019061,2]
[350725267,1738090232130,-236.03831676,0.00019065,2]
[350725268,1738090232140,-236.03831676,0.00019068,2]
[350725269,1738090232150,-236.03831676,0.00019071,2]
[350725270,1738090232160,-236.03831676,0.00019075,2]
[350725271,1738090232171,-299.699,0.00019078,2]
[350725272,1738090232181,-236.03831676,0.00019078,2]
[350725273,1738090232191,-165.17946093,0.00019078,2]
[350725274,1738090232202,-261.435019,0.00019078,2]
[350725275,1738090232212,-164.05461719,0.00019078,2]
[350725276,1738090232227,-295.67477546,0.00019078,2]
[350725277,1738090232238,-177.3783692,0.00019078,2]
[350725278,1738090232249,-924.4514637,0.00019078,2]
[350725279,1738090232262,-1703.0896996,0.00019078,2]
[350725280,1738090232272,-16651.3626002,0.00019109,2]
[350725281,1738090232282,-2879.7046594,0.00019109,2]
[350725282,1738090232294,-585.0,0.00019114,2]
[350725283,1738090232304,-200.0,0.00019114,2]
[350725284,1738090232314,-3000.0,0.00019114,2]
[350725285,1738090232324,-940613.1808391,0.00019114,15]
[350725286,1738090232344,-314.251198,0.00019114,15]
[350725287,1738090232357,-3710.11621467,0.00019114,15]
[350725288,1738090232369,-427.62,0.00019114,15]
[350725291,1738090232544,-34340.077124,0.00019114,15]
[350725295,1738090237842,-527.0,0.00019114,2]
[350725296,1738090237852,-1221.05690461,0.00019114,15]
[350725297,1738090237864,-1731.14013728,0.00019114,15]
[350725511,1738090240076,-3468.6420615,0.00019114,15]
[350725834,1738090243525,-1851.7946358,0.00019114,15]
[350725840,1738090243582,-316.009998,0.00019114,15]
[350725852,1738090243687,-281.55,0.00019114,15]
[350725859,1738090243746,-12747.99036563,0.00019114,15]
[350725912,1738090245637,-11851.04468875,0.00019114,15]
[350725913,1738090245651,-9103.28668135,0.00019114,15]
[350725914,1738090245752,-1445.4419302,0.00019114,15]
[350725915,1738090245868,-1488.80495883,0.00019114,15]
[350725916,1738090245908,-103918.64271182,0.00019114,15]
[350725917,1738090245921,-3389.41886464,0.00019114,15]
[350725919,1738090278061,1518.53793071,0.00011912,2]
[350725920,1738090278341,1518.53793071,0.00011836,2]
[350725921,1738090278668,1518.53793071,0.00011895,2]
[350725922,1738090279271,1518.53793071,0.00011852,2]
[350725923,1738090279352,1518.53793071,0.00011905,2]
[350725924,1738090324210,194.81,0.00010137,2]
[350725926,1738090330470,424.29234264,0.00011855,2]
[350725927,1738090331262,424.29234264,0.00011907,2]
[350725928,1738090331333,424.29234264,0.00011874,2]
[350725929,1738090331838,424.29234264,0.00011825,2]
[350725930,1738090332310,424.29234264,0.00011891,2]
[350725933,1738090638207,200.0,0.00011871,2]
[350725935,1738090647366,200.0,0.00011893,2]
[350725937,1738090689273,89705.22510089,0.00011862,2]
[350725938,1738090689563,89705.22510089,0.00011848,2]
[350725939,1738090689912,89705.22510089,0.00011909,2]
[350725940,1738090690338,89705.22510089,0.00011916,2]
[350725941,1738090690486,89705.22510089,0.00011878,2]
[350725942,1738090696895,10406.70707445,0.00011839,2]
[350725943,1738090697173,10406.70707445,0.00011843,2]
[350725944,1738090697485,10406.70707445,0.00011894,2]
[350725945,1738090697857,10406.70707445,0.00011847,2]
[350725946,1738090698290,10406.70707445,0.00011846,2]
[350725947,1738090704126,200.0,0.00011838,2]
[350725948,1738090704442,200.0,0.00011851,2]
[350725949,1738090710463,1308.44134304,0.00011893,2]
[350725950,1738090710875,1308.44134304,0.00011859,2]
[350725951,1738090711200,1308.44134304,0.00011877,2]
[350725952,1738090711521,1308.44134304,0.00011836,2]
[350725953,1738090711827,1308.44134304,0.0001185,2]
[350725954,1738090718705,788.46251332,0.00011892,2]
[350725955,1738090719033,788.46251332,0.00011851,2]
[350725956,1738090719461,788.46251332,0.00011862,2]
[350725957,1738090719734,788.46251332,0.00011883,2]
[350725958,1738090720018,788.46251332,0.0001187,2]
[350725959,1738090727104,200.0,0.00011854,2]
[350725960,1738090727238,200.0,0.00011857,2]
[350725961,1738090735256,2515.84243009,0.00011901,2]
[350725962,1738090735579,2515.84243009,0.00011895,2]
[350725963,1738090735866,2515.84243009,0.00011897,2]
[350725964,1738090736161,2515.84243009,0.00011864,2]
[350725965,1738090736463,2515.84243009,0.00011884,2]
[350725966,1738090748984,6816.67189911,0.00011828,2]
[350725967,1738090749558,6816.67189911,0.00011878,2]
[350725968,1738090750123,6816.67189911,0.0001187,2]
[350725969,1738090750485,6816.67189911,0.00011855,2]
[350725970,1738090750779,6816.67189911,0.00011915,2]
[350725972,1738090757042,1544.186329,0.00011826,2]
[350725973,1738090757345,1544.186329,0.00011908,2]
[350725974,1738090757798,1544.186329,0.0001191,2]
[350725975,1738090758028,1544.186329,0.00011888,2]
[350725976,1738090758341,1544.186329,0.00011878,2]
[350725979,1738090931555,2205.02964222,0.00011887,2]
[350725980,1738090931846,2205.02964222,0.00011829,2]
[350725981,1738090932221,2205.02964222,0.00011915,2]
[350725982,1738090932513,2205.02964222,0.00011886,2]
[350725983,1738090932800,2205.02964222,0.00011844,2]
[350725984,1738090940058,329.08014324,0.00011871,2]
[350725985,1738090940350,329.08014324,0.00011894,2]
[350725986,1738090940684,329.08014324,0.00011831,2]
[350725987,1738090940965,329.08014324,0.00011893,2]
[350725988,1738090941243,329.08014324,0.00011872,2]
[350725989,1738090948332,2297.43929687,0.00011905,2]
[350725990,1738090948506,2297.43929687,0.00011896,2]
[350725991,1738090948690,2297.43929687,0.00011892,2]
[350725992,1738090949102,2297.43929687,0.00011849,2]
[350725993,1738090949454,2297.43929687,0.00011898,2]
[350725994,1738090956216,200.0,0.00011864,2]
[350725995,1738090964574,702.63876213,0.0001189,2]
[350725996,1738090965104,702.63876213,0.00011915,2]
[350725997,1738090965270,702.63876213,0.00011904,2]
[350725998,1738090965565,702.63876213,0.00011846,2]
[350725999,1738090965839,702.63876213,0.00011915,2]
[350726000,1738090984376,31051.01707138,0.00011866,2]
[350726001,1738090984786,31051.01707138,0.0001189,2]
[350726002,1738090985064,31051.01707138,0.00011837,2]
[350726003,1738090985351,31051.01707138,0.00011918,2]
[350726004,1738090985655,31051.01707138,0.00011885,2]
[350726005,1738090992155,3188.58874509,0.00011833,2]
[350726006,1738090992450,3188.58874509,0.00011836,2]
[350726007,1738090992762,3188.58874509,0.00011919,2]
[350726008,1738090993083,3188.58874509,0.000119,2]
[350726009,1738090993497,3188.58874509,0.00011839,2]
[350726010,1738091000733,409.88075212,0.00011915,2]
[350726011,1738091001087,409.88075212,0.00011901,2]
[350726012,1738091001358,409.88075212,0.00011855,2]
[350726013,1738091001656,409.88075212,0.00011829,2]
[350726014,1738091002058,409.88075212,0.00011895,2]
[350726015,1738091047820,4437.31906668,0.00011888,2]
[350726016,1738091048200,4437.31906668,0.00011892,2]
[350726017,1738091048566,4437.31906668,0.00011842,2]
[350726018,1738091048872,4437.31906668,0.000119,2]
[350726019,1738091049602,4437.31906668,0.0001185,2]
[350726021,1738091127984,200.0,0.00011919,2]
[350726023,1738091182153,195.87,0.00010137,2]
[350726057,1738091431768,-252.68,0.00016254,2]
[350726058,1738091431778,-150.0,0.00016395,2]
[350726059,1738091431788,-1066.11293196,0.000168,2]
[350726060,1738091431874,-4968.22805865,0.000168,2]
[350726061,1738091431883,-195.87,0.00016813,2]
[350726062,1738091431893,-500.0,0.00017384,2]
[350726063,1738091431903,-700.0,0.00017384,2]
[350726064,1738091431913,-183.68475271,0.00017636,2]
[350726065,1738091431923,-1246.73327011,0.00017736,2]
[350726066,1738091431932,-1246.73327009,0.0001778,2]
[350726067,1738091431942,-163.65,0.00017836,2]
[350726068,1738091431951,-174.95,0.0001784,2]
[350726069,1738091431960,-150.0,0.0001788,2]
[350726070,1738091431971,-150.0,0.0001788,2]
[350726071,1738091431980,-1597.88,0.00017939,2]
[350726072,1738091431990,-1000.0,0.00017982,2]
[350726073,1738091432000,-500.0,0.00018022,2]
[350726074,1738091432009,-300.0,0.00018051,2]
[350726075,1738091432018,-483.83,0.00018052,2]
[350726076,1738091432027,-4824.67,0.00018106,2]
[350726077,1738091432036,-195.69,0.00018201,30]
[350726078,1738091432046,-239.759,0.00018239,2]
[350726079,1738091432056,-30935.63,0.0001824,2]
[350726080,1738091432066,-29628.0,0.00018422,2]
[350726081,1738091432077,-187.45,0.00018428,2]
[350726082,1738091432087,-700.0,0.0001848,2]
[350726083,1738091432096,-252.68,0.00018518,2]
[350726084,1738091432106,-16963.6084,0.00018805,2]
[350726085,1738091432116,-20168.95339485,0.00018906,2]
[350726086,1738091432126,-2039.2032,0.00018914,2]
[350726087,1738091432136,-538.0,0.00018918,2]
[350726088,1738091432145,-171.0,0.00018918,2]
[350726089,1738091432155,-150.0,0.00018918,2]
[350726090,1738091432165,-3906.0,0.00018918,2]
[350726091,1738091432174,-500.0,0.00018961,2]
[350726092,1738091432184,-173.58855604,0.00018972,2]
[350726093,1738091432195,-21501.4432,0.00018978,2]
[350726094,1738091432204,-152.73067568,0.00018978,2]
[350726095,1738091432214,-1847.81737909,0.00018978,2]
[350726096,1738091432223,-152.73067555,0.00018984,2]
[350726097,1738091432232,-152.73067555,0.00018991,2]
[350726098,1738091432242,-152.73067555,0.00018997,2]
[350726099,1738091432252,-152.73067555,0.00019003,2]
[350726107,1738091432424,-173.58855601,0.00019007,2]
[350726108,1738091432435,-152.73067555,0.00019009,2]
[350726109,1738091432445,-194.04804824,0.00019014,2]
[350726110,1738091432454,-2284.2994,0.00019014,2]
[350726111,1738091432464,-851.6663,0.00019014,2]
[350726112,1738091432474,-500.0,0.00019014,2]
[350726113,1738091432483,-152.73067555,0.00019016,2]
[350726114,1738091432493,-194.04804824,0.00019021,2]
[350726115,1738091432502,-152.73067555,0.00019022,2]
[350726116,1738091432512,-152.73067555,0.00019028,2]
[350726118,1738091432521,-194.04804824,0.00019028,2]
[350726120,1738091432530,-152.73067555,0.00019034,2]
[350726121,1738091432540,-194.04804824,0.00019035,2]
[350726122,1738091432549,-152.73067555,0.00019041,2]
[350726123,1738091432559,-1947.6947,0.00019041,2]
[350726124,1738091432568,-194.04804824,0.00019042,2]
[350726125,1738091432577,-173.58855601,0.00019043,2]
[350726126,1738091432586,-152.73067555,0.00019047,2]
[350726127,1738091432597,-759.26,0.00019049,3]
[350726128,1738091432606,-194.04804824,0.0001905,2]
[350726129,1738091432616,-152.73067555,0.00019053,2]
[350726130,1738091432627,-194.04804824,0.00019057,2]
[350726131,1738091432636,-152.73067555,0.00019059,2]
[350726132,1738091432646,-194.04804824,0.00019064,2]
[350726133,1738091432656,-152.73067555,0.00019066,2]
[350726134,1738091432666,-194.04804824,0.00019071,2]
[350726135,1738091432675,-152.73067555,0.00019072,2]
[350726136,1738091432685,-100654.9819,0.00019078,2]
[350726137,1738091432696,-4114.51132933,0.00019078,2]
[350726138,1738091432706,-182.9274598,0.00019078,2]
[350726139,1738091432715,-177.3783692,0.00019078,2]
[350726140,1738091432724,-173.58855601,0.00019078,2]
[350726141,1738091432734,-194.04804824,0.00019078,2]
[350726142,1738091432749,-152.73067555,0.00019078,2]
[350726143,1738091432758,-1072.84961384,0.00019078,2]
[350726144,1738091432767,-197.11651698,0.00019078,2]
[350726145,1738091432776,-174.29001266,0.00019078,2]
[350726146,1738091432786,-616.3009758,0.00019078,2]
[350726147,1738091432795,-995.5071341,0.00019109,2]
[350726148,1738091432805,-5747.1225381,0.00019109,2]
[350726149,1738091432814,-3000.0,0.00019114,2]
[350726150,1738091432824,-18127.47952335,0.00019114,15]
[350726151,1738091432834,-100307.36402671,0.00019114,2]
[350726152,1738091432843,-167.34098861,0.00019114,2]
[350726153,1738091432852,-365.88457981,0.00019114,2]
[350726154,1738091432862,-150.0,0.00019122,2]
[350726155,1738091432871,-250.0,0.00019131,2]
[350726156,1738091432880,-306.0,0.00019151,2]
[350726157,1738091432891,-1055.957648,0.00019165,2]
[350726158,1738091432900,-1116.4081618,0.00019165,2]
[350726159,1738091432910,-1176.8586757,0.00019165,2]
[350726160,1738091432921,-1237.3091895,0.00019165,2]
[350726161,1738091432930,-1297.7597033,0.00019165,2]
[350726162,1738091432941,-6096.1069889,0.00019165,2]
[350726163,1738091432951,-6445.0914397,0.00019165,2]
[350726164,1738091432960,-6794.0758905,0.00019165,2]
[350726165,1738091432971,-7143.0603414,0.00019165,2]
[350726166,1738091432981,-7492.0447922,0.00019165,2]
[350726167,1738091432990,-500.0,0.00019173,2]
[350726168,1738091432999,-500.12833481,0.00019173,2]
[350726169,1738091433009,-300.0,0.00019177,2]
[350726170,1738091433020,-300.0,0.00019177,2]
[350726171,1738091433031,-300.0,0.00019177,2]
[350726172,1738091433041,-533.42,0.00019177,2]
[350726173,1738091433051,-300.0,0.00019177,2]
[350726174,1738091433060,-300.0,0.00019177,2]
[350726175,1738091433070,-300.0,0.00019177,2]
[350726176,1738091433081,-300.0,0.00019177,2]
[350726177,1738091433091,-300.0,0.00019177,2]
[350726178,1738091433101,-500.0,0.00019177,2]
[350726179,1738091433110,-500.0,0.00019177,2]
[350726180,1738091433120,-258.99558793,0.00019177,2]
[350726181,1738091433131,-290.61956281,0.00019177,2]
[350726182,1738091433141,-500.0,0.00019177,2]
[350726183,1738091433151,-579.0,0.00019178,2]
[350726184,1738091433161,-281.61353311,0.00019178,2]
[350726185,1738091433172,-160.226989,0.00019178,2]
[350726186,1738091433182,-160.226989,0.00019178,2]
[350726187,1738091433193,-501.18966074,0.00019178,2]
[350726188,1738091433203,-367.30243105,0.00019178,2]
[350726189,1738091433213,-160.226987,0.00019178,2]
[350726190,1738091433225,-160.226987,0.00019178,2]
[350726191,1738091433235,-285.81055422,0.00019178,2]
[350726192,1738091433246,-501.81490827,0.00019178,2]
[350726193,1738091433256,-500.0,0.00019178,2]
[350726194,1738091433267,-500.0,0.00019178,2]
[350726195,1738091433278,-252.31480159,0.00019178,2]
[350726196,1738091433288,-500.0,0.00019178,2]
[350726197,1738091433298,-254.41914021,0.00019178,2]
[350726198,1738091433308,-400.14693863,0.00019178,2]
[350726199,1738091433319,-500.0,0.00019178,2]
[350726200,1738091433329,-500.0,0.00019178,2]
[350726201,1738091433338,-501.86723739,0.00019178,2]
[350726202,1738091433347,-500.0,0.00019178,2]
[350726203,1738091433357,-500.0,0.00019178,2]
[350726204,1738091433367,-500.0,0.00019178,2]
[350726205,1738091433377,-511.51017115,0.00019178,2]
[350726206,1738091433387,-500.0,0.00019178,2]
[350726207,1738091433396,-500.0,0.00019178,2]
[350726208,1738091433406,-334.01453175,0.00019178,2]
[350726209,1738091433416,-158.64549848,0.00019178,2]
[350726210,1738091433426,-500.0,0.00019178,2]
[350726211,1738091433439,-500.0,0.00019178,2]
[350726212,1738091433449,-500.0,0.00019178,2]
[350726213,1738091433459,-500.0,0.00019178,2]
[350726214,1738091433469,-361.40653069,0.00019178,2]
[350726215,1738091433478,-500.0,0.00019178,2]
[350726216,1738091433488,-500.0,0.00019178,2]
[350726217,1738091433497,-500.0,0.00019178,2]
[350726218,1738091433507,-500.0,0.00019178,2]
[350726219,1738091433517,-500.0,0.00019178,2]
[350726220,1738091433528,-500.0,0.00019178,2]
[350726221,1738091433537,-500.0,0.00019178,2]
[350726222,1738091433547,-508.70596901,0.00019178,2]
[350726223,1738091433557,-500.0,0.00019178,2]
[350726224,1738091433566,-500.0,0.00019178,2]
[350726225,1738091433577,-500.0,0.00019178,2]
[350726226,1738091433586,-500.0,0.00019178,2]
[350726227,1738091433596,-500.0,0.00019178,2]
[350726228,1738091433606,-500.0,0.00019178,2]
[350726229,1738091433617,-500.0,0.00019178,2]
[350726230,1738091433628,-500.0,0.00019178,2]
[350726231,1738091433638,-500.0,0.00019178,2]
[350726232,1738091433648,-500.0,0.00019178,2]
[350726233,1738091433657,-158.36442488,0.00019178,2]
[350726234,1738091433668,-1000.0,0.00019178,2]
[350726235,1738091433677,-500.0,0.00019178,2]
[350726236,1738091433687,-500.0,0.00019178,2]
[350726237,1738091433697,-500.0,0.00019178,2]
[350726238,1738091433707,-500.0,0.00019178,2]
[350726239,1738091433716,-151.0,0.00019178,2]
[350726240,1738091433726,-500.0,0.00019178,2]
[350726241,1738091433736,-151.0,0.00019178,2]
[350726242,1738091433746,-500.0,0.00019178,2]
[350726243,1738091433756,-500.0,0.00019178,2]
[350726244,1738091433766,-500.0,0.00019178,2]
[350726245,1738091433776,-500.0,0.00019178,2]
[350726246,1738091433785,-500.0,0.00019178,2]
[350726247,1738091433794,-500.0,0.00019178,2]
[350726248,1738091433803,-500.0,0.00019178,2]
[350726249,1738091433812,-500.0,0.00019178,2]
[350726250,1738091433822,-500.0,0.00019178,2]
[350726251,1738091433832,-504.55149892,0.00019178,2]
[350726252,1738091433842,-500.0,0.00019178,2]
[350726253,1738091433851,-500.0,0.00019178,2]
[350726254,1738091433861,-500.0,0.00019178,2]
[350726255,1738091433871,-500.0,0.00019178,2]
[350726256,1738091433882,-500.0,0.00019178,2]
[350726257,1738091433892,-500.0,0.00019178,2]
[350726258,1738091433902,-500.0,0.00019178,2]
[350726259,1738091433912,-500.0,0.00019178,2]
[350726260,1738091433921,-342.93,0.00019178,2]
[350726261,1738091433931,-500.0,0.00019178,2]
[350726262,1738091433941,-500.0,0.00019178,2]
[350726263,1738091433950,-500.0,0.00019178,2]
[350726264,1738091433960,-500.0,0.00019178,2]
[350726265,1738091433971,-500.0,0.00019178,2]
[350726266,1738091433981,-500.0,0.00019178,2]
[350726267,1738091433991,-500.0,0.00019178,2]
[350726268,1738091434000,-500.0,0.00019178,2]
[350726269,1738091434011,-500.0,0.00019178,2]
[350726270,1738091434021,-500.0,0.00019178,2]
[350726271,1738091434030,-500.0,0.00019178,2]
[350726272,1738091434040,-500.0,0.00019178,2]
[350726273,1738091434050,-500.0,0.00019178,2]
[350726274,1738091434059,-500.90674825,0.00019178,2]
[350726275,1738091434069,-500.0,0.00019178,2]
[350726276,1738091434079,-500.0,0.00019178,2]
[350726277,1738091434088,-500.0,0.00019178,2]
[350726278,1738091434098,-500.0,0.00019178,2]
[350726279,1738091434108,-500.0,0.00019178,2]
[350726280,1738091434119,-500.0,0.00019178,2]
[350726281,1738091434128,-500.0,0.00019178,2]
[350726282,1738091434138,-237.48,0.00019178,2]
[350726283,1738091434148,-500.0,0.00019178,2]
[350726284,1738091434158,-500.0,0.00019178,2]
[350726285,1738091434169,-500.0,0.00019178,2]
[350726286,1738091434178,-500.0,0.00019178,2]
[350726287,1738091434188,-500.0,0.00019178,2]
[350726288,1738091434199,-431.79023081,0.00019178,2]
[350726289,1738091434209,-500.0,0.00019178,2]
[350726290,1738091434219,-500.0,0.00019178,2]